Workbook

Sheet EMPLOYEE INFORMATION
B2: EMPLOYEE INFORMATION
B4: Employee ID | C4: Name | D4: Hourly Wage | E4: Tax Status | F4: Federal Allowance (From W-4) | G4: State Tax (Percentage) | H4: Federal Income Tax (Percentage based on Federal Allowance) | I4: Social Security Tax (Percentage) | J4: Medicare Tax (Percentage) | K4: Total Taxes Withheld (Percentage) | L4: Insurance Deduction (Dollars) | M4: Other Regular Deduction (Dollars) | N4: Total Regular Deductions (Excluding taxes, in dollars)
B5: 1 | C5: Jay Adams | D5: $10.00 | E5: 1 | F5: 4 | G5: 2.30% | H5: 28.00% | I5: 6.30% | J5: 1.45% | K5: =SUM(tblEmployees[[#This Row],[State Tax (Percentage)]:[Medicare Tax (Percentage)]]) -> 38.05% | L5: $20.00 | M5: $40.00 | N5: =tblEmployees[[#This Row],[Insurance Deduction (Dollars)]]+tblEmployees[[#This Row],[Other Regular Deduction (Dollars)]] -> $60.00
B6: 2 | C6: Kim Abercrombie | D6: $15.00 | E6: 1 | F6: 1 | G6: 2.30% | H6: 28.00% | I6: 6.30% | J6: 1.45% | K6: =SUM(tblEmployees[[#This Row],[State Tax (Percentage)]:[Medicare Tax (Percentage)]]) -> 38.05% | L6: $50.00 | M6: $20.00 | N6: =tblEmployees[[#This Row],[Insurance Deduction (Dollars)]]+tblEmployees[[#This Row],[Other Regular Deduction (Dollars)]] -> $70.00

Sheet PAYROLL CALCULATOR
B2: PAYROLL CALCULATOR | K2: Period Ending: | L2: 4167100.00%
B4: Employee ID | C4: Employee Name | D4: Regular Hours Worked | E4: Vacation Hours | F4: Sick Hours | G4: Overtime Hours | H4: Overtime Rate | I4: Gross Pay | J4: Taxes and Deductions | K4: Other Deduction | L4: Net Pay
B5: 1 | C5: =IFERROR(VLOOKUP(tblPayroll[[#This Row],[Employee ID]],tblEmployees[],2,0),"ID not found") -> Jay Adams | D5: 40 | E5: 5 | F5: 1 | G5: 10 | H5: $15.00 | I5: =IFERROR(VLOOKUP(tblPayroll[[#This Row],[Employee ID]],tblEmployees[],3,FALSE)*(tblPayroll[[#This Row],[Regular Hours Worked]]+tblPayroll[[#This Row],[Vacation Hours]]+tblPayroll[[#This Row],[Sick Hours]])+tblPayroll[[#This Row],[Overtime Hours]]*tblPayroll[[#This Row],[Overtime Rate]],"ID not found") -> $610.00 | J5: =IFERROR(VLOOKUP(tblPayroll[[#This Row],[Employee ID]],tblEmployees[],10,FALSE)*tblPayroll[[#This Row],[Gross Pay]]+tblEmployees[[#This Row],[Total Regular Deductions (Excluding taxes, in dollars)]],"ID not found") -> $292.11 | K5: $20.00 | L5: =IFERROR(tblPayroll[[#This Row],[Gross Pay]]-tblPayroll[[#This Row],[Taxes and Deductions ]]-tblPayroll[[#This Row],[Other Deduction]],"ID not found") -> $297.90
B6: 2 | C6: =IFERROR(VLOOKUP(tblPayroll[[#This Row],[Employee ID]],tblEmployees[],2,0),"ID not found") -> Kim Abercrombie | D6: 40 | H6: $22.50 | I6: =IFERROR(VLOOKUP(tblPayroll[[#This Row],[Employee ID]],tblEmployees[],3,FALSE)*(tblPayroll[[#This Row],[Regular Hours Worked]]+tblPayroll[[#This Row],[Vacation Hours]]+tblPayroll[[#This Row],[Sick Hours]])+tblPayroll[[#This Row],[Overtime Hours]]*tblPayroll[[#This Row],[Overtime Rate]],"ID not found") -> $600.00 | J6: =IFERROR(VLOOKUP(tblPayroll[[#This Row],[Employee ID]],tblEmployees[],10,FALSE)*tblPayroll[[#This Row],[Gross Pay]]+tblEmployees[[#This Row],[Total Regular Deductions (Excluding taxes, in dollars)]],"ID not found") -> $298.30 | L6: =IFERROR(tblPayroll[[#This Row],[Gross Pay]]-tblPayroll[[#This Row],[Taxes and Deductions ]]-tblPayroll[[#This Row],[Other Deduction]],"ID not found") -> $301.70
B7: 3 | C7: =IFERROR(VLOOKUP(tblPayroll[[#This Row],[Employee ID]],tblEmployees[],2,0),"ID not found") -> ID not found | I7: =IFERROR(VLOOKUP(tblPayroll[[#This Row],[Employee ID]],tblEmployees[],3,FALSE)*(tblPayroll[[#This Row],[Regular Hours Worked]]+tblPayroll[[#This Row],[Vacation Hours]]+tblPayroll[[#This Row],[Sick Hours]])+tblPayroll[[#This Row],[Overtime Hours]]*tblPayroll[[#This Row],[Overtime Rate]],"ID not found") -> ID not found | J7: =IFERROR(VLOOKUP(tblPayroll[[#This Row],[Employee ID]],tblEmployees[],10,FALSE)*tblPayroll[[#This Row],[Gross Pay]]+tblEmployees[[#This Row],[Total Regular Deductions (Excluding taxes, in dollars)]],"ID not found") -> ID not found | L7: =IFERROR(tblPayroll[[#This Row],[Gross Pay]]-tblPayroll[[#This Row],[Taxes and Deductions ]]-tblPayroll[[#This Row],[Other Deduction]],"ID not found") -> ID not found
B8: 4 | C8: =IFERROR(VLOOKUP(tblPayroll[[#This Row],[Employee ID]],tblEmployees[],2,0),"ID not found") -> ID not found | I8: =IFERROR(VLOOKUP(tblPayroll[[#This Row],[Employee ID]],tblEmployees[],3,FALSE)*(tblPayroll[[#This Row],[Regular Hours Worked]]+tblPayroll[[#This Row],[Vacation Hours]]+tblPayroll[[#This Row],[Sick Hours]])+tblPayroll[[#This Row],[Overtime Hours]]*tblPayroll[[#This Row],[Overtime Rate]],"ID not found") -> ID not found | J8: =IFERROR(VLOOKUP(tblPayroll[[#This Row],[Employee ID]],tblEmployees[],10,FALSE)*tblPayroll[[#This Row],[Gross Pay]]+tblEmployees[[#This Row],[Total Regular Deductions (Excluding taxes, in dollars)]],"ID not found") -> ID not found | L8: =IFERROR(tblPayroll[[#This Row],[Gross Pay]]-tblPayroll[[#This Row],[Taxes and Deductions ]]-tblPayroll[[#This Row],[Other Deduction]],"ID not found") -> ID not found
B9: 5 | C9: =IFERROR(VLOOKUP(tblPayroll[[#This Row],[Employee ID]],tblEmployees[],2,0),"ID not found") -> ID not found | I9: =IFERROR(VLOOKUP(tblPayroll[[#This Row],[Employee ID]],tblEmployees[],3,FALSE)*(tblPayroll[[#This Row],[Regular Hours Worked]]+tblPayroll[[#This Row],[Vacation Hours]]+tblPayroll[[#This Row],[Sick Hours]])+tblPayroll[[#This Row],[Overtime Hours]]*tblPayroll[[#This Row],[Overtime Rate]],"ID not found") -> ID not found | J9: =IFERROR(VLOOKUP(tblPayroll[[#This Row],[Employee ID]],tblEmployees[],10,FALSE)*tblPayroll[[#This Row],[Gross Pay]]+tblEmployees[[#This Row],[Total Regular Deductions (Excluding taxes, in dollars)]],"ID not found") -> ID not found | L9: =IFERROR(tblPayroll[[#This Row],[Gross Pay]]-tblPayroll[[#This Row],[Taxes and Deductions ]]-tblPayroll[[#This Row],[Other Deduction]],"ID not found") -> ID not found

Sheet INDIVIDUAL PAYSTUBS
C1: =IF(ISNA(VLOOKUP(H5,tblEmployees[],2,0)),FALSE,TRUE) -> TRUE
C3: [Company Name]
C5: Period: | D5: =IF(F5<>"",'PAYROLL CALCULATOR'!$L$2,"") -> 4167100.00% | E5: Employee Name | F5: =IFERROR(VLOOKUP(H5,tblEmployees[],2,0),"") -> Jay Adams | G5: Employee ID | H5: 1
C7: Tax Status | D7: =IFERROR(IF(C1,VLOOKUP($H$5,tblEmployees[],4,0),0),0) -> 1 | E7: Federal Allowance (From W-4) | F7: =IFERROR(IF(C1,VLOOKUP($H$5,tblEmployees[],5,0),0),0) -> 4 | G7: Hours Worked | H7: =IFERROR(IF(C1,VLOOKUP($H$5,tblPayroll[],3,0),0),0) -> 40
C8: Hourly Rate | D8: =IFERROR(IF(C1,VLOOKUP($H$5,tblEmployees[],3,0),0),0) -> $10.00 | E8: Overtime Rate | F8: =IFERROR(IF(C1,VLOOKUP($H$5,tblPayroll[],7,0),0),0) -> $15.00 | G8: Sick Hours | H8: =IFERROR(IF(C1,VLOOKUP($H$5,tblPayroll[],5,0),0),0) -> 1
C9: Social Security Tax | D9: =IFERROR(IF(C1,VLOOKUP($H$5,tblEmployees[],8,0)*H11,0),0) -> $38.43 | E9: Federal Income Tax | F9: =IFERROR(IF(C1,VLOOKUP($H$5,tblEmployees[],7,0)*H11,0),0) -> $170.80 | G9: Vacation Hours | H9: =IFERROR(IF(C1,VLOOKUP($H$5,tblPayroll[],4,0),0),0) -> 5
C10: Medicare Tax | D10: =IFERROR(IF(C1,VLOOKUP($H$5,tblEmployees[],9,0)*H11,0),0) -> $8.85 | E10: State Tax | F10: =IFERROR(IF(C1,VLOOKUP($H$5,tblEmployees[],6,0)*H11,0),0) -> $14.03 | G10: Overtime Hours | H10: =IFERROR(IF(C1,VLOOKUP($H$5,tblPayroll[],6,0),0),0) -> 10
C11: Insurance Deduction | D11: =IFERROR(IF(C1,VLOOKUP($H$5,tblEmployees[],11,0),0),0) -> $20.00 | E11: Other Regular Deduction | F11: =IFERROR(IF(C1,VLOOKUP($H$5,tblEmployees[],12,0),0),0) -> $40.00 | G11: Gross Pay | H11: =IFERROR(IF(C1,VLOOKUP($H$5,tblPayroll[],8,0),0),0) -> $610.00
C12: Total Taxes and Regular Deductions | D12: =SUM(D9:D11,F9:F11) -> $292.11 | E12: Other Deduction | F12: =IFERROR(IF(C1,VLOOKUP($H$5,tblPayroll[],10,0),0),0) -> $20.00 | G12: Total Taxes and Deductions | H12: =IFERROR(IF(C1,VLOOKUP($H$5,tblPayroll[],9,0)+F12,0),0) -> $312.11
G13: Net Pay | H13: =IFERROR(IF(C1,VLOOKUP($H$5,tblPayroll[],11,0),0),0) -> $297.90
C15: =IF(ISNA(VLOOKUP(H19,tblEmployees[],2,0)),FALSE,TRUE) -> TRUE
C17: =C3 -> [Company Name]
C19: Period: | D19: =IF(F19<>"",'PAYROLL CALCULATOR'!$L$2,"") -> 4167100.00% | E19: Employee Name | F19: =IFERROR(VLOOKUP(H19,tblEmployees[],2,0),"") -> Kim Abercrombie | G19: Employee ID | H19: 2
C21: Tax Status | D21: =IFERROR(IF(C15,VLOOKUP($H$19,tblEmployees[],4,0),0),0) -> 1 | E21: Federal Allowance (From W-4) | F21: =IFERROR(IF(C15,VLOOKUP($H$19,tblEmployees[],5,0),0),0) -> 1 | G21: Hours Worked | H21: =IFERROR(IF(C15,VLOOKUP($H$19,tblPayroll[],3,0),0),0) -> 40
C22: Hourly Rate | D22: =IFERROR(IF(C15,VLOOKUP($H$19,tblEmployees[],3,0),0),0) -> $15.00 | E22: Overtime Rate | F22: =IFERROR(IF(C15,VLOOKUP($H$19,tblPayroll[],7,0),0),0) -> $22.50 | G22: Sick Hours | H22: =IFERROR(IF(C15,VLOOKUP($H$19,tblPayroll[],5,0),0),0) -> 0
C23: Social Security Tax | D23: =IFERROR(IF(C15,VLOOKUP($H$19,tblEmployees[],8,0)*H25,0),0) -> $37.80 | E23: Federal Income Tax | F23: =IFERROR(IF(C15,VLOOKUP($H$19,tblEmployees[],7,0)*H25,0),0) -> $168.00 | G23: Vacation Hours | H23: =IFERROR(IF(C15,VLOOKUP($H$19,tblPayroll[],4,0),0),0) -> 0
C24: Medicare Tax | D24: =IFERROR(IF(C15,VLOOKUP($H$19,tblEmployees[],9,0)*H25,0),0) -> $8.70 | E24: State Tax | F24: =IFERROR(IF(C15,VLOOKUP($H$19,tblEmployees[],6,0)*H25,0),0) -> $13.80 | G24: Overtime Hours | H24: =IFERROR(IF(C15,VLOOKUP($H$19,tblPayroll[],6,0),0),0) -> 0
C25: Insurance Deduction | D25: =IFERROR(IF(C15,VLOOKUP($H$19,tblEmployees[],11,0),0),0) -> $50.00 | E25: Other Regular Deduction | F25: =IFERROR(IF(C15,VLOOKUP($H$19,tblEmployees[],12,0),0),0) -> $20.00 | G25: Gross Pay | H25: =IFERROR(IF(C15,VLOOKUP($H$19,tblPayroll[],8,0),0),0) -> $600.00
C26: Total Taxes and Regular Deductions | D26: =SUM(D23:D25,F23:F25) -> $298.30 | E26: Other Deduction | F26: =IFERROR(IF(C15,VLOOKUP($H$19,tblPayroll[],10,0),0),0) -> $0.00 | G26: Total Taxes and Deductions | H26: =IFERROR(IF(C15,VLOOKUP($H$19,tblPayroll[],9,0)+F26,0),0) -> $298.30
G27: Net Pay | H27: =IFERROR(IF(C15,VLOOKUP($H$19,tblPayroll[],11,0),0),0) -> $301.70
C29: =IF(ISNA(VLOOKUP(H33,tblEmployees[],2,0)),FALSE,TRUE) -> FALSE
C31: =C3 -> [Company Name]
C33: Period: | D33: =IF(F33<>"",'PAYROLL CALCULATOR'!$L$2,"") ->  | E33: Employee Name | F33: =IFERROR(VLOOKUP(H33,tblEmployees[],2,0),"") ->  | G33: Employee ID | H33: 3
C35: Tax Status | D35: =IFERROR(IF(C29,VLOOKUP($H$33,tblEmployees[],4,0),0),0) -> 0 | E35: Federal Allowance (From W-4) | F35: =IFERROR(IF(C29,VLOOKUP($H$33,tblEmployees[],5,0),0),0) -> 0 | G35: Hours Worked | H35: =IFERROR(IF(C29,VLOOKUP($H$33,tblPayroll[],3,0),0),0) -> 0
C36: Hourly Rate | D36: =IFERROR(IF(C29,VLOOKUP($H$33,tblEmployees[],3,0),0),0) -> $0.00 | E36: Overtime Rate | F36: =IFERROR(IF(C29,VLOOKUP($H$33,tblPayroll[],7,0),0),0) -> $0.00 | G36: Sick Hours | H36: =IFERROR(IF(C29,VLOOKUP($H$33,tblPayroll[],5,0),0),0) -> 0
C37: Social Security Tax | D37: =IFERROR(IF(C29,VLOOKUP($H$33,tblEmployees[],8,0)*H39,0),0) -> $0.00 | E37: Federal Income Tax | F37: =IFERROR(IF(C29,VLOOKUP($H$33,tblEmployees[],7,0)*H39,0),0) -> $0.00 | G37: Vacation Hours | H37: =IFERROR(IF(C29,VLOOKUP($H$33,tblPayroll[],4,0),0),0) -> 0
C38: Medicare Tax | D38: =IFERROR(IF(C29,VLOOKUP($H$33,tblEmployees[],9,0)*H39,0),0) -> $0.00 | E38: State Tax | F38: =IFERROR(IF(C29,VLOOKUP($H$33,tblEmployees[],6,0)*H39,0),0) -> $0.00 | G38: Overtime Hours | H38: =IFERROR(IF(C29,VLOOKUP($H$33,tblPayroll[],6,0),0),0) -> 0
C39: Insurance Deduction | D39: =IFERROR(IF(C29,VLOOKUP($H$33,tblEmployees[],11,0),0),0) -> $0.00 | E39: Other Regular Deduction | F39: =IFERROR(IF(C29,VLOOKUP($H$33,tblEmployees[],12,0),0),0) -> $0.00 | G39: Gross Pay | H39: =IFERROR(IF(C29,VLOOKUP($H$33,tblPayroll[],8,0),0),0) -> $0.00
C40: Total Taxes and Regular Deductions | D40: =SUM(D37:D39,F37:F39) -> $0.00 | E40: Other Deduction | F40: =IFERROR(IF(C29,VLOOKUP($H$33,tblPayroll[],10,0),0),0) -> $0.00 | G40: Total Taxes and Deductions | H40: =IFERROR(IF(C29,VLOOKUP($H$33,tblPayroll[],9,0)+F40,0),0) -> $0.00
G41: Net Pay | H41: =IFERROR(IF(C29,VLOOKUP($H$33,tblPayroll[],11,0),0),0) -> $0.00
C43: =IF(ISNA(VLOOKUP(H47,tblEmployees[],2,0)),FALSE,TRUE) -> FALSE
C45: =C3 -> [Company Name]
C47: Period: | D47: =IF(F47<>"",'PAYROLL CALCULATOR'!$L$2,"") -> 4167100.00% | E47: Employee Name | F47: =IFERROR(VLOOKUP(H47,tblEmployees[],2,0),"ID not found") -> ID not found | G47: Employee ID | H47: 4
C49: Tax Status | D49: =IFERROR(IF(C43,VLOOKUP($H$47,tblEmployees[],4,0),0),0) -> 0 | E49: Federal Allowance (From W-4) | F49: =IFERROR(IF(C43,VLOOKUP($H$47,tblEmployees[],5,0),0),0) -> 0 | G49: Hours Worked | H49: =IFERROR(IF(C43,VLOOKUP($H$47,tblPayroll[],3,0),0),0) -> 0
C50: Hourly Rate | D50: =IFERROR(IF(C43,VLOOKUP($H$47,tblEmployees[],3,0),0),0) -> $0.00 | E50: Overtime Rate | F50: =IFERROR(IF(C43,VLOOKUP($H$47,tblPayroll[],7,0),0),0) -> $0.00 | G50: Sick Hours | H50: =IFERROR(IF(C43,VLOOKUP($H$47,tblPayroll[],5,0),0),0) -> 0
C51: Social Security Tax | D51: =IFERROR(IF(C43,VLOOKUP($H$47,tblEmployees[],8,0)*H53,0),0) -> $0.00 | E51: Federal Income Tax | F51: =IFERROR(IF(C43,VLOOKUP($H$47,tblEmployees[],7,0)*H53,0),0) -> $0.00 | G51: Vacation Hours | H51: =IFERROR(IF(C43,VLOOKUP($H$47,tblPayroll[],4,0),0),0) -> 0
C52: Medicare Tax | D52: =IFERROR(IF(C43,VLOOKUP($H$47,tblEmployees[],9,0)*H53,0),0) -> $0.00 | E52: State Tax | F52: =IFERROR(IF(C43,VLOOKUP($H$47,tblEmployees[],6,0)*H53,0),0) -> $0.00 | G52: Overtime Hours | H52: =IFERROR(IF(C43,VLOOKUP($H$47,tblPayroll[],6,0),0),0) -> 0
C53: Insurance Deduction | D53: =IFERROR(IF(C43,VLOOKUP($H$47,tblEmployees[],11,0),0),0) -> $0.00 | E53: Other Regular Deduction | F53: =IFERROR(IF(C43,VLOOKUP($H$47,tblEmployees[],12,0),0),0) -> $0.00 | G53: Gross Pay | H53: =IFERROR(IF(C43,VLOOKUP($H$47,tblPayroll[],8,0),0),0) -> $0.00
C54: Total Taxes and Regular Deductions | D54: =SUM(D51:D53,F51:F53) -> $0.00 | E54: Other Deduction | F54: =IFERROR(IF(C43,VLOOKUP($H$47,tblPayroll[],10,0),0),0) -> $0.00 | G54: Total Taxes and Deductions | H54: =IFERROR(IF(C43,VLOOKUP($H$47,tblPayroll[],9,0)+F54,0),0) -> $0.00
G55: Net Pay | H55: =IFERROR(IF(C43,VLOOKUP($H$47,tblPayroll[],11,0),0),0) -> $0.00
